fUSD/lending_fUSD_20260621
["ID","MTS","AMOUNT","RATE_DAILY","PERIOD"]
[425895091,1782030645000,-3065.16,0.00027397,2]
[425895067,1782030645000,-500.0,0.00027397,2]
[425895066,1782030645000,-500.0,0.00027397,2]
[425895057,1782030645000,-500.0,0.00027397,2]
[425895064,1782030645000,-1091.17,0.00027397,2]
[425895058,1782030645000,-500.0,0.00027397,2]
[425895065,1782030645000,-744.53,0.00027397,2]
[425895059,1782030645000,-500.0,0.00027397,2]
[425895062,1782030645000,-500.0,0.00027397,2]
[425895063,1782030645000,-500.0,0.00027397,2]
[425895060,1782030645000,-500.0,0.00027397,2]
[425895068,1782030645000,-487.55007699,0.00027397,2]
[425895070,1782030645000,-500.0,0.00027397,2]
[425895071,1782030645000,-500.0,0.00027397,2]
[425895092,1782030645000,-151.0,0.00027397,2]
[425895072,1782030645000,-500.0,0.00027397,2]
[425895076,1782030645000,-500.0,0.00027397,2]
[425895075,1782030645000,-500.0,0.00027397,2]
[425895079,1782030645000,-373.91700202,0.00027397,2]
[425895074,1782030645000,-500.0,0.00027397,2]
[425895069,1782030645000,-500.0,0.00027397,2]
[425895078,1782030645000,-500.0,0.00027397,2]
[425895073,1782030645000,-500.0,0.00027397,2]
[425895077,1782030645000,-627.76,0.00027397,2]
[425895082,1782030645000,-500.0,0.00027397,2]
[425895084,1782030645000,-500.0,0.00027397,2]
[425895090,1782030645000,-151.0,0.00027397,2]
[425895093,1782030645000,-151.0,0.00027397,2]
[425895088,1782030645000,-500.0,0.00027397,2]
[425895080,1782030645000,-500.0,0.00027397,2]
[425895129,1782030645000,-559.91,0.00027397,2]
[425895122,1782030645000,-500.0,0.00027397,2]
[425895126,1782030645000,-500.0,0.00027397,2]
[425895150,1782030645000,-1385.81,0.00027397,2]
[425895152,1782030645000,-500.0,0.00027397,2]
[425895154,1782030645000,-500.0,0.00027397,2]
[425895167,1782030645000,-500.0,0.00027397,2]
[425895157,1782030645000,-500.0,0.00027397,2]
[425895163,1782030645000,-500.0,0.00027397,2]
[425895162,1782030645000,-508.92096588,0.00027397,2]
[425895166,1782030645000,-927.82,0.00027397,2]
[425895161,1782030645000,-5605.99,0.00027397,2]
[425895159,1782030645000,-500.0,0.00027397,2]
[425895169,1782030645000,-1575.21,0.00027397,2]
[425895158,1782030645000,-500.0,0.00027397,2]
[425895160,1782030645000,-1512.61,0.00027397,2]
[425895168,1782030645000,-500.0,0.00027397,2]
[425895165,1782030645000,-500.0,0.00027397,2]
[425895164,1782030645000,-639.64,0.00027397,2]
[425895170,1782030645000,-500.0,0.00027397,2]
[425895171,1782030645000,-500.0,0.00027397,2]
[425895175,1782030645000,-500.0,0.00027397,2]
[425895172,1782030645000,-1872.05,0.00027397,2]
[425895173,1782030645000,-500.0,0.00027397,2]
[425895176,1782030645000,-500.0,0.00027397,2]
[425895180,1782030645000,-500.0,0.00027397,2]
[425895179,1782030645000,-500.0,0.00027397,2]
[425895174,1782030645000,-500.0,0.00027397,2]
[425895178,1782030645000,-557.52,0.00027397,2]
[425895177,1782030645000,-500.0,0.00027397,2]
[425895156,1782030645000,-500.0,0.00027397,2]
[425895145,1782030645000,-500.0,0.00027397,2]
[425895181,1782030645000,-500.0,0.00027397,2]
[425895147,1782030645000,-500.0,0.00027397,2]
[425895146,1782030645000,-500.0,0.00027397,2]
[425895119,1782030645000,-528.2554322,0.00027397,2]
[425895131,1782030645000,-500.0,0.00027397,2]
[425895118,1782030645000,-500.0,0.00027397,2]
[425895120,1782030645000,-564.34087094,0.00027397,2]
[425895127,1782030645000,-4314.51,0.00027397,2]
[425895121,1782030645000,-901.37,0.00027397,2]
[425895125,1782030645000,-500.0,0.00027397,2]
[425895124,1782030645000,-616.94,0.00027397,2]
[425895123,1782030645000,-500.0,0.00027397,2]
[425895128,1782030645000,-552.36421605,0.00027397,2]
[425895133,1782030645000,-500.0,0.00027397,2]
[425895139,1782030645000,-500.0,0.00027397,2]
[425895144,1782030645000,-500.0,0.00027397,2]
[425895130,1782030645000,-500.0,0.00027397,2]
[425895141,1782030645000,-500.0,0.00027397,2]
[425895142,1782030645000,-500.0,0.00027397,2]
[425895148,1782030645000,-500.0,0.00027397,2]
[425895155,1782030645000,-3679.81,0.00027397,2]
[425895153,1782030645000,-209.16447524,0.00027397,2]
[425895140,1782030645000,-500.0,0.00027397,2]
[425895135,1782030645000,-3862.56,0.00027397,2]
[425895149,1782030645000,-500.0,0.00027397,2]
[425895151,1782030645000,-672.54,0.00027397,2]
[425895138,1782030645000,-1207.68,0.00027397,2]
[425895143,1782030645000,-541.65,0.00027397,2]
[425895132,1782030645000,-500.0,0.00027397,2]
[425895137,1782030645000,-1028.12,0.00027397,2]
[425895134,1782030645000,-500.0,0.00027397,2]
[425895136,1782030645000,-500.0,0.00027397,2]
[425895213,1782030646000,-500.0,0.00027397,2]
[425895214,1782030646000,-1139.19,0.00027397,2]
[425895212,1782030646000,-640.67,0.00027397,2]
[425895215,1782030646000,-500.0,0.00027397,2]
[425895208,1782030646000,-500.0,0.00027397,2]
[425895217,1782030646000,-500.0,0.00027397,2]
[425895210,1782030646000,-507.28434922,0.00027397,2]
[425895220,1782030646000,-835.12,0.00027397,2]
[425895211,1782030646000,-500.0,0.00027397,2]
[425895209,1782030646000,-500.0,0.00027397,2]
[425895226,1782030646000,-500.0,0.00027397,2]
[425895229,1782030646000,-500.0,0.00027397,2]
[425895218,1782030646000,-500.0,0.00027397,2]
[425895221,1782030646000,-500.0,0.00027397,2]
[425895223,1782030646000,-500.0,0.00027397,2]
[425895205,1782030646000,-500.0,0.00027397,2]
[425895224,1782030646000,-668.87,0.00027397,2]
[425895222,1782030646000,-591.43736612,0.00027397,2]
[425895227,1782030646000,-500.0,0.00027397,2]
[425895230,1782030646000,-500.0,0.00027397,2]
[425895225,1782030646000,-500.0,0.00027397,2]
[425895228,1782030646000,-500.0,0.00027397,2]
[425895219,1782030646000,-245.97983047,0.00027397,2]
[425895207,1782030646000,-2372.91,0.00027397,2]
[425895199,1782030646000,-5457.71,0.00027397,2]
[425895216,1782030646000,-500.0,0.00027397,2]
[425895232,1782030646000,-500.0,0.00027397,2]
[425895189,1782030646000,-507.46803417,0.00027397,2]
[425895191,1782030646000,-500.0,0.00027397,2]
[425895183,1782030646000,-1143.14,0.00027397,2]
[425895187,1782030646000,-1589.62,0.00027397,2]
[425895190,1782030646000,-500.0,0.00027397,2]
[425895184,1782030646000,-151.0,0.00027397,2]
[425895182,1782030646000,-500.0,0.00027397,2]
[425895188,1782030646000,-620.2,0.00027397,2]
[425895186,1782030646000,-167.226672,0.00027397,2]
[425895206,1782030646000,-681.71,0.00027397,2]
[425895185,1782030646000,-151.0,0.00027397,2]
[425895194,1782030646000,-500.0,0.00027397,2]
[425895196,1782030646000,-500.0,0.00027397,2]
[425895195,1782030646000,-838.96,0.00027397,2]
[425895200,1782030646000,-500.0,0.00027397,2]
[425895197,1782030646000,-500.0,0.00027397,2]
[425895201,1782030646000,-872.58,0.00027397,2]
[425895204,1782030646000,-500.0,0.00027397,2]
[425895203,1782030646000,-2877.52,0.00027397,2]
[425895202,1782030646000,-813.38,0.00027397,2]
[425895198,1782030646000,-500.0,0.00027397,2]
[425895193,1782030646000,-500.0,0.00027397,2]
[425895192,1782030646000,-500.0,0.00027397,2]
[425895241,1782030646000,-500.0,0.00027397,2]
[425895233,1782030646000,-573.43,0.00027397,2]
[425895272,1782030646000,-151.0,0.00027397,2]
[425895273,1782030646000,-151.0,0.00027397,2]
[425895262,1782030646000,-500.0,0.00027397,2]
[425895261,1782030646000,-500.0,0.00027397,2]
[425895271,1782030646000,-500.0,0.00027397,2]
[425895268,1782030646000,-500.0,0.00027397,2]
[425895265,1782030646000,-500.0,0.00027397,2]
[425895263,1782030646000,-500.0,0.00027397,2]
[425895266,1782030646000,-500.0,0.00027397,2]
[425895269,1782030646000,-500.0,0.00027397,2]
[425895260,1782030646000,-500.0,0.00027397,2]
[425895267,1782030646000,-151.0,0.00027397,2]
[425895280,1782030646000,-542.49,0.00027397,2]
[425895274,1782030646000,-500.0,0.00027397,2]
[425895281,1782030646000,-23.28271433,0.00027397,2]
[425895278,1782030646000,-227.265461,0.00027397,2]
[425895275,1782030646000,-785.35,0.00027397,2]
[425895276,1782030646000,-151.0,0.00027397,2]
[425895279,1782030646000,-500.0,0.00027397,2]
[425895277,1782030646000,-500.0,0.00027397,2]
[425895282,1782030646000,-476.71728567,0.00027397,2]
[425895231,1782030646000,-613.52,0.00027397,2]
[425895264,1782030646000,-500.0,0.00027397,2]
[425895258,1782030646000,-501.49,0.00027397,2]
[425895270,1782030646000,-151.0,0.00027397,2]
[425895259,1782030646000,-500.0,0.00027397,2]
[425895242,1782030646000,-300.0,0.00027397,2]
[425895257,1782030646000,-500.0,0.00027397,2]
[425895239,1782030646000,-500.0,0.00027397,2]
[425895238,1782030646000,-500.0,0.00027397,2]
[425895236,1782030646000,-500.0,0.00027397,2]
[425895234,1782030646000,-500.0,0.00027397,2]
[425895235,1782030646000,-500.0,0.00027397,2]
[425895237,1782030646000,-1085.27,0.00027397,2]
[425895249,1782030646000,-500.0,0.00027397,2]
[425895248,1782030646000,-500.0,0.00027397,2]
[425895244,1782030646000,-500.0,0.00027397,2]
[425895240,1782030646000,-500.0,0.00027397,2]
[425895250,1782030646000,-500.0,0.00027397,2]
[425895252,1782030646000,-500.0,0.00027397,2]
[425895253,1782030646000,-500.0,0.00027397,2]
[425895255,1782030646000,-558.3,0.00027397,2]
[425895243,1782030646000,-500.0,0.00027397,2]
[425895246,1782030646000,-655.64,0.00027397,2]
[425895254,1782030646000,-500.0,0.00027397,2]
[425895256,1782030646000,-500.0,0.00027397,2]
[425895247,1782030646000,-500.0,0.00027397,2]
[425895245,1782030646000,-500.0,0.00027397,2]
[425895251,1782030646000,-500.0,0.00027397,2]
[425895322,1782030647000,-1375.03,0.00027397,2]
[425895314,1782030647000,-500.83916894,0.00027397,2]
[425895323,1782030647000,-573.43,0.00027397,2]
[425895324,1782030647000,-508.6064196,0.00027397,2]
[425895328,1782030647000,-500.0,0.00027397,2]
[425895319,1782030647000,-505.26110415,0.00027397,2]
[425895315,1782030647000,-500.0,0.00027397,2]
[425895320,1782030647000,-500.0,0.00027397,2]
[425895352,1782030647000,-500.0,0.00027397,2]
[425895308,1782030647000,-500.0,0.00027397,2]
[425895327,1782030647000,-726.28,0.00027397,2]
[425895330,1782030647000,-500.0,0.00027397,2]
[425895321,1782030647000,-500.0,0.00027397,2]
[425895341,1782030647000,-500.0,0.00027397,2]
[425895325,1782030647000,-500.0,0.00027397,2]
[425895326,1782030647000,-500.0,0.00027397,2]
[425895331,1782030647000,-559.56946431,0.00027397,2]
[425895335,1782030647000,-171.0,0.00027397,3]
[425895340,1782030647000,-500.0,0.00027397,2]
[425895337,1782030647000,-171.0,0.00027397,3]
[425895332,1782030647000,-500.0,0.00027397,2]
[425895338,1782030647000,-500.0,0.00027397,2]
[425895333,1782030647000,-500.0,0.00027397,2]
[425895334,1782030647000,-171.0,0.00027397,3]
[425895336,1782030647000,-500.0,0.00027397,2]
[425895339,1782030647000,-174.35791562,0.00027397,3]
[425895317,1782030647000,-500.0,0.00027397,2]
[425895329,1782030647000,-506.8881253,0.00027397,2]
[425895307,1782030647000,-500.0,0.00027397,2]
[425895292,1782030647000,-584.85,0.00027397,2]
[425895310,1782030647000,-500.0,0.00027397,2]
[425895283,1782030647000,-500.0,0.00027397,2]
[425895287,1782030647000,-1206.28,0.00027397,2]
[425895284,1782030647000,-422.9340936,0.00027397,2]
[425895288,1782030647000,-500.0,0.00027397,2]
[425895286,1782030647000,-551.49,0.00027397,2]
[425895285,1782030647000,-500.0,0.00027397,2]
[425895289,1782030647000,-500.0,0.00027397,2]
[425895293,1782030647000,-500.0,0.00027397,2]
[425895290,1782030647000,-500.0,0.00027397,2]
[425895294,1782030647000,-500.0,0.00027397,2]
[425895291,1782030647000,-500.0,0.00027397,2]
[425895306,1782030647000,-500.0,0.00027397,2]
[425895296,1782030647000,-500.0,0.00027397,2]
[425895295,1782030647000,-500.0,0.00027397,2]
[425895297,1782030647000,-500.0,0.00027397,2]
[425895299,1782030647000,-616.27,0.00027397,2]
[425895303,1782030647000,-500.0,0.00027397,2]
[425895300,1782030647000,-516.6,0.00027397,2]
[425895302,1782030647000,-500.0,0.00027397,2]
[425895304,1782030647000,-500.0,0.00027397,2]
[425895298,1782030647000,-500.0,0.00027397,2]
[425895301,1782030647000,-500.0,0.00027397,2]
[425895305,1782030647000,-7008.53,0.00027397,2]
[425895313,1782030647000,-3851.02,0.00027397,2]
[425895309,1782030647000,-500.0,0.00027397,2]
[425895311,1782030647000,-500.0,0.00027397,2]
[425895312,1782030647000,-500.0,0.00027397,2]
[425895316,1782030647000,-500.0,0.00027397,2]
[425895343,1782030647000,-500.0,0.00027397,2]
[425895318,1782030647000,-515.8019306,0.00027397,2]
[425895346,1782030647000,-261.74655818,0.00027397,2]
[425895373,1782030647000,-2019.42,0.00027397,2]
[425895372,1782030647000,-500.0,0.00027397,2]
[425895381,1782030647000,-500.0,0.00027397,2]
[425895384,1782030647000,-16367.63,0.00027397,2]
[425895383,1782030647000,-795.36,0.00027397,2]
[425895386,1782030647000,-1592.33,0.00027397,2]
[425895392,1782030647000,-2278.65,0.00027397,2]
[425895387,1782030647000,-500.0,0.00027397,2]
[425895382,1782030647000,-500.0,0.00027397,2]
[425895385,1782030647000,-500.0,0.00027397,2]
[425895390,1782030647000,-500.0,0.00027397,2]
[425895391,1782030647000,-500.0,0.00027397,2]
[425895388,1782030647000,-504.76660242,0.00027397,2]
[425895389,1782030647000,-647.76,0.00027397,2]
[425895393,1782030647000,-500.0,0.00027397,2]
[425895395,1782030647000,-603.02,0.00027397,2]
[425895403,1782030647000,-172.722659,0.00027397,2]
[425895397,1782030647000,-500.0,0.00027397,2]
[425895404,1782030647000,-1706.6,0.00027397,10]
[425895394,1782030647000,-1305.95,0.00027397,2]
[425895401,1782030647000,-151.0,0.00027397,2]
[425895396,1782030647000,-983.27,0.00027397,2]
[425895400,1782030647000,-209.090929,0.00027397,2]
[425895398,1782030647000,-533.17467605,0.00027397,2]
[425895402,1782030647000,-151.0,0.00027397,2]
[425895399,1782030647000,-159.68637363,0.00027397,2]
[425895344,1782030647000,-728.77,0.00027397,2]
[425895376,1782030647000,-500.0,0.00027397,2]
[425895374,1782030647000,-2826.58,0.00027397,2]
[425895377,1782030647000,-504.46,0.00027397,2]
[425895375,1782030647000,-500.0,0.00027397,2]
[425895345,1782030647000,-500.0,0.00027397,2]
[425895353,1782030647000,-500.0,0.00027397,2]
[425895354,1782030647000,-590.3050494,0.00027397,2]
[425895351,1782030647000,-500.0,0.00027397,2]
[425895350,1782030647000,-573.46235251,0.00027397,2]
[425895348,1782030647000,-500.0,0.00027397,2]
[425895342,1782030647000,-500.0,0.00027397,2]
[425895349,1782030647000,-597.07,0.00027397,2]
[425895347,1782030647000,-500.0,0.00027397,2]
[425895355,1782030647000,-500.0,0.00027397,2]
[425895378,1782030647000,-901.13,0.00027397,2]
[425895358,1782030647000,-944.61,0.00027397,2]
[425895363,1782030647000,-500.0,0.00027397,2]
[425895359,1782030647000,-555.63,0.00027397,2]
[425895365,1782030647000,-500.0,0.00027397,2]
[425895361,1782030647000,-1266.83,0.00027397,2]
[425895371,1782030647000,-500.0,0.00027397,2]
[425895370,1782030647000,-500.0,0.00027397,2]
[425895357,1782030647000,-500.0,0.00027397,2]
[425895368,1782030647000,-500.0,0.00027397,2]
[425895369,1782030647000,-503.52334901,0.00027397,2]
[425895379,1782030647000,-500.0,0.00027397,2]
[425895380,1782030647000,-500.0,0.00027397,2]
[425895364,1782030647000,-500.0,0.00027397,2]
[425895367,1782030647000,-500.0,0.00027397,2]
[425895362,1782030647000,-500.0,0.00027397,2]
[425895356,1782030647000,-500.0,0.00027397,2]
[425895360,1782030647000,-500.0,0.00027397,2]
[425895366,1782030647000,-500.0,0.00027397,2]
[425895418,1782030648000,-514.71331904,0.0002767,2]
[425895406,1782030648000,-303.31,0.000275,7]
[425895405,1782030648000,-150.0,0.00027398,2]
[425895417,1782030648000,-514.71331904,0.0002767,2]
[425895408,1782030648000,-500.0,0.000275,7]
[425895412,1782030648000,-524.95779422,0.00027562,2]
[425895420,1782030648000,-191739.51458904,0.00027671,2]
[425895407,1782030648000,-4100.0,0.000275,7]
[425895414,1782030648000,-4087.44938633,0.00027571,2]
[425895409,1782030648000,-174.71,0.0002755,30]
[425895425,1782030648000,-2368.72,0.00020819,2]
[425895411,1782030648000,-157.95,0.00027551,30]
[425895419,1782030648000,-514.71331904,0.0002767,2]
[425895424,1782030648000,-1397.4087721,0.00020819,2]
[425895421,1782030648000,-1254.41808677,0.00027671,2]
[425895422,1782030648000,-271.56582339,0.00020819,2]
[425895423,1782030648000,-461.12763942,0.00020819,2]
[425895413,1782030648000,-1723.48835853,0.00027571,2]
[425895416,1782030648000,-514.71331904,0.0002767,2]
[425895410,1782030648000,-158.08,0.00027551,30]
[425895415,1782030648000,-514.71331905,0.0002767,2]
[425895453,1782030649000,-500.0,0.00027396,2]
[425895443,1782030649000,-500.0,0.00027396,2]
[425895447,1782030649000,-500.0,0.00027396,2]
[425895454,1782030649000,-158.09,0.00027551,30]
[425895455,1782030649000,-177747.70826621,0.00027671,2]
[425895449,1782030649000,-500.0,0.00027396,2]
[425895451,1782030649000,-500.0,0.00027396,2]
[425895456,1782030649000,-610.38806991,0.00027671,2]
[425895468,1782030649000,-500.0,0.00027671,2]
[425895463,1782030649000,-500.0,0.00027671,2]
[425895461,1782030649000,-500.0,0.00027671,2]
[425895460,1782030649000,-500.0,0.00027671,2]
[425895444,1782030649000,-500.0,0.00027396,2]
[425895457,1782030649000,-510.83834531,0.00027671,2]
[425895467,1782030649000,-500.0,0.00027671,2]
[425895459,1782030649000,-500.0,0.00027671,2]
[425895458,1782030649000,-500.0,0.00027671,2]
[425895466,1782030649000,-500.0,0.00027671,2]
[425895462,1782030649000,-503.44622977,0.00027671,2]
[425895446,1782030649000,-500.0,0.00027396,2]
[425895442,1782030649000,-500.0,0.00027396,2]
[425895448,1782030649000,-500.0,0.00027396,2]
[425895464,1782030649000,-500.0,0.00027671,2]
[425895428,1782030649000,-1006.02544951,0.00010792,2]
[425895426,1782030649000,-10807.16911734,0.00010792,2]
[425895427,1782030649000,-832.50414813,0.00010792,2]
[425895429,1782030649000,-6362.21190137,0.00010792,2]
[425895430,1782030649000,-562.35893659,0.00010792,2]
[425895431,1782030649000,-896.94,0.00010792,2]
[425895432,1782030649000,-3114.62395894,0.00010792,2]
[425895434,1782030649000,-3458.68384234,0.00010792,2]
[425895435,1782030649000,-1582.17776509,0.00020819,2]
[425895438,1782030649000,-500.0,0.00027396,2]
[425895436,1782030649000,-6081.0,0.00023819,2]
[425895437,1782030649000,-6081.0,0.00026819,2]
[425895433,1782030649000,-6274.04304578,0.00010792,2]
[425895440,1782030649000,-500.0,0.00027396,2]
[425895439,1782030649000,-500.0,0.00027396,2]
[425895441,1782030649000,-500.0,0.00027396,2]
[425895445,1782030649000,-500.0,0.00027396,2]
[425895450,1782030649000,-500.0,0.00027396,2]
[425895452,1782030649000,-500.0,0.00027396,2]
[425895465,1782030649000,-500.0,0.00027671,2]
[425895480,1782030649000,-500.0,0.00027671,2]
[425895475,1782030649000,-909.56,0.00027671,2]
[425895505,1782030649000,-500.0,0.00027671,2]
[425895495,1782030649000,-500.0,0.00027671,2]
[425895497,1782030649000,-500.0,0.00027671,2]
[425895496,1782030649000,-500.0,0.00027671,2]
[425895499,1782030649000,-500.0,0.00027671,2]
[425895498,1782030649000,-500.0,0.00027671,2]
[425895502,1782030649000,-500.0,0.00027671,2]
[425895500,1782030649000,-500.0,0.00027671,2]
[425895503,1782030649000,-500.0,0.00027671,2]
[425895493,1782030649000,-500.0,0.00027671,2]
[425895508,1782030649000,-500.0,0.00027671,2]
[425895506,1782030649000,-500.0,0.00027671,2]
[425895507,1782030649000,-500.0,0.00027671,2]
[425895509,1782030649000,-500.0,0.00027671,2]
[425895510,1782030649000,-500.0,0.00027671,2]
[425895512,1782030649000,-500.0,0.00027671,2]
[425895511,1782030649000,-500.0,0.00027671,2]
[425895513,1782030649000,-500.0,0.00027671,2]
[425895469,1782030649000,-1091.57,0.00027671,2]
[425895504,1782030649000,-500.0,0.00027671,2]
[425895494,1782030649000,-500.0,0.00027671,2]
[425895501,1782030649000,-500.0,0.00027671,2]
[425895489,1782030649000,-573.99323837,0.00027671,2]
[425895472,1782030649000,-500.0,0.00027671,2]
[425895486,1782030649000,-500.0,0.00027671,2]
[425895473,1782030649000,-500.0,0.00027671,2]
[425895474,1782030649000,-500.0,0.00027671,2]
[425895471,1782030649000,-500.0,0.00027671,2]
[425895470,1782030649000,-500.0,0.00027671,2]
[425895476,1782030649000,-531.37,0.00027671,2]
[425895477,1782030649000,-500.0,0.00027671,2]
[425895479,1782030649000,-500.0,0.00027671,2]
[425895481,1782030649000,-500.0,0.00027671,2]
[425895478,1782030649000,-500.0,0.00027671,2]
[425895492,1782030649000,-500.0,0.00027671,2]
[425895491,1782030649000,-592.47,0.00027671,2]
[425895483,1782030649000,-500.0,0.00027671,2]
[425895482,1782030649000,-500.0,0.00027671,2]
[425895484,1782030649000,-500.0,0.00027671,2]
[425895490,1782030649000,-952.93,0.00027671,2]
[425895487,1782030649000,-500.0,0.00027671,2]
[425895488,1782030649000,-500.0,0.00027671,2]
[425895485,1782030649000,-740.51,0.00027671,2]
[425895554,1782030650000,-500.0,0.00027671,2]
[425895555,1782030650000,-500.0,0.00027671,2]
[425895553,1782030650000,-500.0,0.00027671,2]
[425895550,1782030650000,-832.58,0.00027671,2]
[425895556,1782030650000,-500.0,0.00027671,2]
[425895548,1782030650000,-500.0,0.00027671,2]
[425895551,1782030650000,-627.87,0.00027671,2]
[425895552,1782030650000,-750.93,0.00027671,2]
[425895545,1782030650000,-634.91,0.00027671,2]
[425895557,1782030650000,-500.0,0.00027671,2]
[425895547,1782030650000,-652.16,0.00027671,2]
[425895549,1782030650000,-500.0,0.00027671,2]
[425895566,1782030650000,-500.0,0.00027671,2]
[425895570,1782030650000,-500.0,0.00027671,2]
[425895561,1782030650000,-623.61,0.00027671,2]
[425895558,1782030650000,-500.0,0.00027671,2]
[425895562,1782030650000,-500.0,0.00027671,2]
[425895564,1782030650000,-500.0,0.00027671,2]
[425895563,1782030650000,-500.0,0.00027671,2]
[425895559,1782030650000,-500.0,0.00027671,2]
[425895560,1782030650000,-500.0,0.00027671,2]
[425895565,1782030650000,-500.0,0.00027671,2]
[425895567,1782030650000,-500.0,0.00027671,2]
[425895542,1782030650000,-500.0,0.00027671,2]
[425895568,1782030650000,-500.0,0.00027671,2]
[425895546,1782030650000,-500.0,0.00027671,2]
[425895543,1782030650000,-530.85,0.00027671,2]
[425895531,1782030650000,-500.0,0.00027671,2]
[425895541,1782030650000,-500.0,0.00027671,2]
[425895575,1782030650000,-500.0,0.00027671,2]
[425895518,1782030650000,-500.0,0.00027671,2]
[425895517,1782030650000,-747.33,0.00027671,2]
[425895515,1782030650000,-500.0,0.00027671,2]
[425895516,1782030650000,-500.0,0.00027671,2]
[425895514,1782030650000,-623.21,0.00027671,2]
[425895522,1782030650000,-280.71103,0.00027671,2]
[425895521,1782030650000,-500.0,0.00027671,2]
[425895526,1782030650000,-500.0,0.00027671,2]
[425895523,1782030650000,-500.0,0.00027671,2]
[425895524,1782030650000,-500.0,0.00027671,2]
[425895530,1782030650000,-500.0,0.00027671,2]
[425895539,1782030650000,-500.0,0.00027671,2]
[425895527,1782030650000,-563.02,0.00027671,2]
[425895519,1782030650000,-656.6,0.00027671,2]
[425895520,1782030650000,-520.73618141,0.00027671,2]
[425895528,1782030650000,-500.0,0.00027671,2]
[425895525,1782030650000,-500.0,0.00027671,2]
[425895544,1782030650000,-500.0,0.00027671,2]
[425895534,1782030650000,-500.0,0.00027671,2]
[425895535,1782030650000,-500.0,0.00027671,2]
[425895536,1782030650000,-500.0,0.00027671,2]
[425895533,1782030650000,-500.0,0.00027671,2]
[425895537,1782030650000,-500.0,0.00027671,2]
[425895538,1782030650000,-500.0,0.00027671,2]
[425895540,1782030650000,-500.0,0.00027671,2]
[425895532,1782030650000,-500.0,0.00027671,2]
[425895574,1782030650000,-500.0,0.00027671,2]
[425895572,1782030650000,-500.0,0.00027671,2]
[425895576,1782030650000,-582.57,0.00027671,2]
[425895613,1782030650000,-500.0,0.00027671,2]
[425895611,1782030650000,-500.0,0.00027671,2]
[425895616,1782030650000,-500.0,0.00027671,2]
[425895614,1782030650000,-838.22,0.00027671,2]
[425895606,1782030650000,-500.0,0.00027671,2]
[425895608,1782030650000,-500.0,0.00027671,2]
[425895605,1782030650000,-500.0,0.00027671,2]
[425895615,1782030650000,-500.0,0.00027671,2]
[425895617,1782030650000,-639.47132117,0.00027671,2]
[425895618,1782030650000,-579.16,0.00027671,2]
[425895612,1782030650000,-500.0,0.00027671,2]
[425895607,1782030650000,-500.0,0.00027671,2]
[425895609,1782030650000,-500.0,0.00027671,2]
[425895620,1782030650000,-500.0,0.00027671,2]
[425895622,1782030650000,-764.28,0.00027671,2]